[Event "Late-Titled-Tuesday-Blitz-June-04-2024"]
[Site "Chess.com"]
[Date "2024.06.04"]
[Round "3"]
[White "Sacbutt"]
[Black "ImportedItalianMaple"]
[Result "0-1"]
[WhiteElo "2323"]
[BlackElo "2552"]
[TimeControl "180+1"]
[EndTime "14:27:05 PDT"]
[Termination "ImportedItalianMaple won on time"]

1. d4 {[%clk 0:03:00.9]} 1... g6 {[%clk 0:02:58.9]} 2. c4 {[%clk 0:03:00.1]}
2... Bg7 {[%clk 0:02:59.3]} 3. Nc3 {[%clk 0:03:00.2]} 3... c5 {[%clk 0:02:59.8]}
4. d5 {[%clk 0:02:59.8]} 4... Bxc3+ {[%clk 0:03:00.4]} 5. bxc3 {[%clk
0:03:00.5]} 5... e5 {[%clk 0:03:01]} 6. e4 {[%clk 0:02:59]} 6... d6 {[%clk
0:03:01.4]} 7. Bd3 {[%clk 0:02:59.1]} 7... Qe7 {[%clk 0:02:58.6]} 8. Ne2 {[%clk
0:02:54.5]} 8... Nd7 {[%clk 0:02:58.7]} 9. O-O {[%clk 0:02:54.6]} 9... h5 {[%clk
0:02:56.1]} 10. Qc2 {[%clk 0:02:53.5]} 10... Nf8 {[%clk 0:02:52.2]} 11. f4
{[%clk 0:02:49.7]} 11... f6 {[%clk 0:02:52.3]} 12. Bd2 {[%clk 0:02:31]} 12...
Rh7 {[%clk 0:02:44.4]} 13. Rab1 {[%clk 0:02:29.4]} 13... Kd8 {[%clk 0:02:42.4]}
14. a4 {[%clk 0:02:27.7]} 14... Kc7 {[%clk 0:02:41.8]} 15. a5 {[%clk 0:02:27.1]}
15... h4 {[%clk 0:02:30.3]} 16. Rb2 {[%clk 0:02:16.1]} 16... h3 {[%clk
0:02:29.6]} 17. g3 {[%clk 0:02:15]} 17... Nh6 {[%clk 0:02:21.9]} 18. fxe5 {[%clk
0:02:00.1]} 18... fxe5 {[%clk 0:02:20.7]} 19. Qb3 {[%clk 0:01:46.3]} 19... Ng4
{[%clk 0:02:13.2]} 20. Nc1 {[%clk 0:01:42.2]} 20... Rf7 {[%clk 0:02:02.2]} 21.
Na2 {[%clk 0:01:25.7]} 21... Nh7 {[%clk 0:01:57]} 22. Bc1 {[%clk 0:01:21.7]}
22... Rxf1+ {[%clk 0:01:49.5]} 23. Bxf1 {[%clk 0:01:20.3]} 23... Ng5 {[%clk
0:01:50]} 24. Bxg5 {[%clk 0:00:58]} 24... Qxg5 {[%clk 0:01:49.5]} 25. Re2 {[%clk
0:00:52.5]} 25... Bd7 {[%clk 0:01:30.4]} 26. Bxh3 {[%clk 0:00:46.8]} 26... Rh8
{[%clk 0:01:24.6]} 27. Bxg4 {[%clk 0:00:46.1]} 27... Qxg4 {[%clk 0:01:25.4]} 28.
Qd1 {[%clk 0:00:37.1]} 28... Qh5 {[%clk 0:01:11.3]} 29. Qf1 {[%clk 0:00:32.4]}
29... Rh7 {[%clk 0:01:06.7]} 30. Nc1 {[%clk 0:00:29.5]} 30... Bh3 {[%clk
0:01:04.7]} 31. Qf2 {[%clk 0:00:24.4]} 31... Qg5 {[%clk 0:01:02.1]} 32. Qe3
{[%clk 0:00:22.9]} 32... Rf7 {[%clk 0:00:47.7]} 0-1

[Event "Late-Titled-Tuesday-Blitz-June-04-2024"]
[Site "Chess.com"]
[Date "2024.06.04"]
[Round "3"]
[White "Bugcrusher"]
[Black "Nf3c5"]
[Result "0-1"]
[WhiteElo "2427"]
[BlackElo "2606"]
[TimeControl "180+1"]
[EndTime "14:27:08 PDT"]
[Termination "Nf3c5 won by resignation"]

1. d4 {[%clk 0:03:00]} 1... Nf6 {[%clk 0:02:58.9]} 2. Bf4 {[%clk 0:02:58.1]}
2... c5 {[%clk 0:02:55.3]} 3. e3 {[%clk 0:02:55.3]} 3... d5 {[%clk 0:02:41.4]}
4. Nf3 {[%clk 0:02:52]} 4... Nc6 {[%clk 0:02:42]} 5. Nbd2 {[%clk 0:02:51.4]}
5... cxd4 {[%clk 0:02:39.9]} 6. exd4 {[%clk 0:02:50.8]} 6... Bg4 {[%clk
0:02:40.5]} 7. Bb5 {[%clk 0:02:47.9]} 7... Qb6 {[%clk 0:02:37.8]} 8. c4 {[%clk
0:02:26.7]} 8... e6 {[%clk 0:02:29]} 9. O-O {[%clk 0:02:21.2]} 9... Be7 {[%clk
0:02:19.2]} 10. h3 {[%clk 0:02:20.9]} 10... Bh5 {[%clk 0:02:18.6]} 11. Qa4
{[%clk 0:02:12.8]} 11... Bxf3 {[%clk 0:01:54]} 12. Nxf3 {[%clk 0:02:11.5]} 12...
dxc4 {[%clk 0:01:53.1]} 13. Ne5 {[%clk 0:01:59.3]} 13... Rc8 {[%clk 0:01:52.2]}
14. Nxc4 {[%clk 0:01:56]} 14... Qd8 {[%clk 0:01:51.1]} 15. Qxa7 {[%clk
0:01:48.8]} 15... O-O {[%clk 0:01:48.3]} 16. Qxb7 {[%clk 0:01:47.6]} 16... Nxd4
{[%clk 0:01:38.4]} 17. Rfd1 {[%clk 0:01:38.8]} 17... Bc5 {[%clk 0:01:26.6]} 18.
Be5 {[%clk 0:01:20.7]} 18... Ne2+ {[%clk 0:01:06.7]} 19. Kf1 {[%clk 0:01:20.4]}
19... Nd5 {[%clk 0:01:07.3]} 20. Kxe2 {[%clk 0:01:13]} 20... Qh4 {[%clk
0:01:05.8]} 21. Bg3 {[%clk 0:01:11.4]} 21... Qe4+ {[%clk 0:00:54.7]} 22. Kf1
{[%clk 0:01:10.6]} 22... Ne3+ {[%clk 0:00:54.6]} 23. Nxe3 {[%clk 0:01:03.2]}
23... Qxb7 {[%clk 0:00:55.2]} 24. a4 {[%clk 0:01:01.8]} 24... Bxe3 {[%clk
0:00:51.5]} 25. fxe3 {[%clk 0:01:01.5]} 25... Rc2 {[%clk 0:00:52.2]} 26. Bf2
{[%clk 0:00:58.3]} 26... f5 {[%clk 0:00:40.5]} 27. Rd7 {[%clk 0:00:56.3]} 27...
Qe4 {[%clk 0:00:38.2]} 28. Rad1 {[%clk 0:00:54.9]} 28... f4 {[%clk 0:00:27.5]}
29. Bd3 {[%clk 0:00:53.5]} 29... Rxf2+ {[%clk 0:00:24.3]} 30. Kxf2 {[%clk
0:00:49.6]} 30... Qxe3+ {[%clk 0:00:24.2]} 31. Kf1 {[%clk 0:00:48.9]} 31... f3
{[%clk 0:00:25.1]} 32. g4 {[%clk 0:00:42.5]} 32... f2 {[%clk 0:00:25.6]} 33. Bc4
{[%clk 0:00:35.8]} 33... Qxh3+ {[%clk 0:00:23.3]} 34. Ke2 {[%clk 0:00:35.9]}
34... f1=Q+ {[%clk 0:00:23.7]} 35. Rxf1 {[%clk 0:00:35.5]} 35... Qxf1+ {[%clk
0:00:24]} 0-1

[Event "Late-Titled-Tuesday-Blitz-June-04-2024"]
[Site "Chess.com"]
[Date "2024.06.04"]
[Round "3"]
[White "sari07"]
[Black "fly_21"]
[Result "1-0"]
[WhiteElo "2383"]
[BlackElo "2595"]
[TimeControl "180+1"]
[EndTime "14:27:10 PDT"]
[Termination "sari07 won by checkmate"]

1. d4 {[%clk 0:02:31.1]} 1... Nf6 {[%clk 0:02:58.6]} 2. Nf3 {[%clk 0:02:31.1]}
2... g6 {[%clk 0:02:58.8]} 3. Nbd2 {[%clk 0:02:29.2]} 3... d5 {[%clk 0:02:58.4]}
4. b4 {[%clk 0:02:28.2]} 4... Bg7 {[%clk 0:02:57.8]} 5. e3 {[%clk 0:02:28.1]}
5... O-O {[%clk 0:02:54.8]} 6. Be2 {[%clk 0:02:27.1]} 6... a5 {[%clk 0:02:55.3]}
7. b5 {[%clk 0:02:25.7]} 7... c5 {[%clk 0:02:55.5]} 8. bxc6 {[%clk 0:02:20.7]}
8... Nxc6 {[%clk 0:02:55.4]} 9. Bb2 {[%clk 0:02:05.1]} 9... Bf5 {[%clk
0:02:53.9]} 10. a3 {[%clk 0:01:51.1]} 10... Ne4 {[%clk 0:02:49.3]} 11. O-O
{[%clk 0:01:42.6]} 11... Rc8 {[%clk 0:02:44.9]} 12. c4 {[%clk 0:01:31.2]} 12...
Nxd2 {[%clk 0:02:44.4]} 13. Nxd2 {[%clk 0:01:27.4]} 13... e5 {[%clk 0:02:41.7]}
14. cxd5 {[%clk 0:01:27.5]} 14... Qxd5 {[%clk 0:02:31.1]} 15. e4 {[%clk
0:01:22.2]} 15... Bxe4 {[%clk 0:02:15.4]} 16. Bc4 {[%clk 0:01:21.5]} 16... Qd7
{[%clk 0:02:09.3]} 17. Nxe4 {[%clk 0:01:21]} 17... Nxd4 {[%clk 0:02:09.6]} 18.
Bd3 {[%clk 0:00:53.9]} 18... f5 {[%clk 0:02:00.6]} 19. Ng5 {[%clk 0:00:51.7]}
19... h6 {[%clk 0:01:49.1]} 20. Bxd4 {[%clk 0:00:50.9]} 20... hxg5 {[%clk
0:01:48]} 21. Bb2 {[%clk 0:00:41.5]} 21... Rfd8 {[%clk 0:01:46.5]} 22. Qb3+
{[%clk 0:00:41]} 22... Kh7 {[%clk 0:01:46.2]} 23. Bb5 {[%clk 0:00:39.4]} 23...
Qe7 {[%clk 0:01:31.1]} 24. Rfd1 {[%clk 0:00:36.1]} 24... Rc5 {[%clk 0:01:23.4]}
25. a4 {[%clk 0:00:24.2]} 25... Qc7 {[%clk 0:01:21.8]} 26. Rxd8 {[%clk
0:00:19.7]} 26... Qxd8 {[%clk 0:01:22.7]} 27. Rd1 {[%clk 0:00:19]} 27... Qc8
{[%clk 0:01:21.9]} 28. Bd7 {[%clk 0:00:17]} 28... Qc7 {[%clk 0:01:18.7]} 29.
Qh3+ {[%clk 0:00:13]} 29... Kg8 {[%clk 0:01:13.1]} 30. Be6+ {[%clk 0:00:12.7]}
30... Kf8 {[%clk 0:01:13.3]} 31. Ba3 {[%clk 0:00:13]} 31... b6 {[%clk 0:01:04]}
32. Qh7 {[%clk 0:00:11.9]} 32... Ke7 {[%clk 0:00:55.2]} 33. Qxg7+ {[%clk
0:00:11.7]} 33... Kxe6 {[%clk 0:00:54.9]} 34. Qxg6+ {[%clk 0:00:12]} 34... Ke7
{[%clk 0:00:54.2]} 35. Qxg5+ {[%clk 0:00:12.2]} 35... Kf7 {[%clk 0:00:54.1]} 36.
Qxf5+ {[%clk 0:00:12.4]} 36... Kg8 {[%clk 0:00:53.6]} 37. Bxc5 {[%clk
0:00:11.8]} 37... bxc5 {[%clk 0:00:53.9]} 38. Qg6+ {[%clk 0:00:12.2]} 38... Kf8
{[%clk 0:00:53.6]} 39. Qf6+ {[%clk 0:00:12.5]} 39... Ke8 {[%clk 0:00:53.1]} 40.
Rd6 {[%clk 0:00:12.5]} 40... Qh7 {[%clk 0:00:49.5]} 41. Rd8# {[%clk 0:00:12.3]}
1-0

[Event "Late-Titled-Tuesday-Blitz-June-04-2024"]
[Site "Chess.com"]
[Date "2024.06.04"]
[Round "3"]
[White "ivanquiroga"]
[Black "VladimirBugayev"]
[Result "0-1"]
[WhiteElo "2533"]
[BlackElo "2328"]
[TimeControl "180+1"]
[EndTime "14:27:13 PDT"]
[Termination "VladimirBugayev won by resignation"]

1. d4 {[%clk 0:03:00.9]} 1... Nf6 {[%clk 0:02:58.6]} 2. c4 {[%clk 0:03:00.4]}
2... c5 {[%clk 0:02:59.3]} 3. Nf3 {[%clk 0:03:00]} 3... cxd4 {[%clk 0:02:57]} 4.
Nxd4 {[%clk 0:03:00.9]} 4... Nc6 {[%clk 0:02:57]} 5. Nc3 {[%clk 0:02:59.3]} 5...
g6 {[%clk 0:02:54.4]} 6. Nxc6 {[%clk 0:02:59]} 6... bxc6 {[%clk 0:02:52]} 7. e4
{[%clk 0:02:59.5]} 7... d6 {[%clk 0:02:45.7]} 8. Be3 {[%clk 0:02:59.7]} 8... Bg7
{[%clk 0:02:45.5]} 9. f3 {[%clk 0:02:59.5]} 9... O-O {[%clk 0:02:45.5]} 10. Be2
{[%clk 0:03:00]} 10... a5 {[%clk 0:02:42.4]} 11. O-O {[%clk 0:03:00]} 11... Rb8
{[%clk 0:02:39.4]} 12. Qd2 {[%clk 0:02:59.1]} 12... Nd7 {[%clk 0:02:29]} 13.
Rac1 {[%clk 0:02:58.9]} 13... Nc5 {[%clk 0:02:25.6]} 14. b3 {[%clk 0:02:59.1]}
14... a4 {[%clk 0:02:19.1]} 15. Bxc5 {[%clk 0:02:58.9]} 15... dxc5 {[%clk
0:02:10.5]} 16. Qxd8 {[%clk 0:02:51.7]} 16... Rxd8 {[%clk 0:02:09.5]} 17. Nxa4
{[%clk 0:02:47.2]} 17... Rd2 {[%clk 0:02:06.7]} 18. Bd1 {[%clk 0:02:41.8]} 18...
Rxa2 {[%clk 0:02:04.3]} 19. Kh1 {[%clk 0:02:39.9]} 19... Bd4 {[%clk 0:02:02.8]}
20. Re1 {[%clk 0:02:35.5]} 20... e5 {[%clk 0:01:44.7]} 21. Re2 {[%clk
0:02:34.5]} 21... Rxe2 {[%clk 0:01:35.4]} 22. Bxe2 {[%clk 0:02:30.1]} 22... f5
{[%clk 0:01:31.2]} 23. Rb1 {[%clk 0:02:21.8]} 23... Rb4 {[%clk 0:01:21.9]} 24.
Bd3 {[%clk 0:02:15.9]} 24... Be6 {[%clk 0:01:16.7]} 25. g3 {[%clk 0:02:12.6]}
25... f4 {[%clk 0:01:12.4]} 26. Kg2 {[%clk 0:02:09.4]} 26... Kg7 {[%clk
0:01:06.2]} 27. Bc2 {[%clk 0:02:06.8]} 27... h5 {[%clk 0:01:03.1]} 28. Bd3
{[%clk 0:02:05.4]} 28... g5 {[%clk 0:01:02]} 29. Bc2 {[%clk 0:02:04.7]} 29... g4
{[%clk 0:01:01.6]} 30. Bd3 {[%clk 0:01:57.2]} 30... Kf6 {[%clk 0:01:01]} 31. Bc2
{[%clk 0:01:53.5]} 31... Kg5 {[%clk 0:01:01]} 32. Bd3 {[%clk 0:01:47.1]} 32...
h4 {[%clk 0:00:53.1]} 33. gxh4+ {[%clk 0:01:44.7]} 33... Kxh4 {[%clk 0:00:46]}
34. Be2 {[%clk 0:01:42.2]} 34... gxf3+ {[%clk 0:00:39.3]} 35. Bxf3 {[%clk
0:01:42.4]} 35... Bxc4 {[%clk 0:00:38.2]} 36. Bd1 {[%clk 0:01:41.1]} 36... Bd3
{[%clk 0:00:37.4]} 37. Rc1 {[%clk 0:01:40.8]} 37... Bxe4+ {[%clk 0:00:37.6]} 38.
Kf1 {[%clk 0:01:40.5]} 38... c4 {[%clk 0:00:34.6]} 39. bxc4 {[%clk 0:01:38.7]}
39... c5 {[%clk 0:00:30.3]} 40. Ke1 {[%clk 0:01:20.4]} 40... Bc6 {[%clk
0:00:29.5]} 41. Nc3 {[%clk 0:01:16.2]} 41... Rxc4 {[%clk 0:00:28.3]} 42. Ne2
{[%clk 0:01:16.2]} 42... Rxc1 {[%clk 0:00:25.3]} 43. Nxc1 {[%clk 0:01:17.1]}
43... e4 {[%clk 0:00:21]} 44. Bc2 {[%clk 0:01:16.8]} 44... Kh3 {[%clk
0:00:17.7]} 45. Ne2 {[%clk 0:01:16.6]} 45... Be5 {[%clk 0:00:17.7]} 46. Kf1
{[%clk 0:01:15]} 46... Kxh2 {[%clk 0:00:17.5]} 47. Ng1 {[%clk 0:01:15.2]} 47...
Kg3 {[%clk 0:00:16.6]} 48. Ne2+ {[%clk 0:01:15.4]} 48... Kg4 {[%clk 0:00:17]}
49. Bd1 {[%clk 0:01:15.5]} 49... f3 {[%clk 0:00:16.6]} 50. Nc1 {[%clk
0:01:14.6]} 50... Bb5+ {[%clk 0:00:16.7]} 51. Ke1 {[%clk 0:01:14.5]} 51... Bc3+
{[%clk 0:00:16.3]} 52. Kf2 {[%clk 0:01:14]} 52... Kf4 {[%clk 0:00:15.8]} 53.
Bxf3 {[%clk 0:01:12.1]} 53... Bd4+ {[%clk 0:00:14.2]} 54. Ke1 {[%clk 0:01:10]}
54... exf3 {[%clk 0:00:14.8]} 55. Nb3 {[%clk 0:01:10.2]} 55... f2+ {[%clk
0:00:14.9]} 0-1

[Event "Late-Titled-Tuesday-Blitz-June-04-2024"]
[Site "Chess.com"]
[Date "2024.06.04"]
[Round "3"]
[White "Seppppppy"]
[Black "Yaacovn"]
[Result "0-1"]
[WhiteElo "2201"]
[BlackElo "2798"]
[TimeControl "180+1"]
[EndTime "14:27:15 PDT"]
[Termination "Yaacovn won by resignation"]

1. d4 {[%clk 0:03:00.9]} 1... Nf6 {[%clk 0:02:59.5]} 2. c4 {[%clk 0:03:00]} 2...
e5 {[%clk 0:02:42.3]} 3. dxe5 {[%clk 0:02:58.8]} 3... Ne4 {[%clk 0:02:38.4]} 4.
Nf3 {[%clk 0:02:48]} 4... Nc6 {[%clk 0:02:32.2]} 5. e3 {[%clk 0:02:45.4]} 5...
d6 {[%clk 0:02:14]} 6. exd6 {[%clk 0:02:41.9]} 6... Bxd6 {[%clk 0:02:12.8]} 7.
Bd3 {[%clk 0:02:41.5]} 7... Bb4+ {[%clk 0:02:09]} 8. Ke2 {[%clk 0:02:27.9]} 8...
Qe7 {[%clk 0:02:04.2]} 9. a3 {[%clk 0:02:24]} 9... Bd6 {[%clk 0:02:00.5]} 10.
Nbd2 {[%clk 0:02:23.7]} 10... Bf5 {[%clk 0:01:59.2]} 11. Qc2 {[%clk 0:02:21.5]}
11... Nxd2 {[%clk 0:01:56]} 12. Bxd2 {[%clk 0:02:18.4]} 12... Bg4 {[%clk
0:01:55.5]} 13. Bc3 {[%clk 0:02:14.8]} 13... O-O-O {[%clk 0:01:54.6]} 14. h3
{[%clk 0:02:13.7]} 14... Bxf3+ {[%clk 0:01:53.3]} 15. gxf3 {[%clk 0:02:14.6]}
15... Be5 {[%clk 0:01:53.4]} 16. Be4 {[%clk 0:02:13]} 16... Bxc3 {[%clk
0:01:51.8]} 17. Qxc3 {[%clk 0:02:12.6]} 17... Ne5 {[%clk 0:01:51.9]} 18. Rad1
{[%clk 0:02:05.7]} 18... g6 {[%clk 0:01:46.3]} 19. f4 {[%clk 0:01:46.5]} 19...
Nd7 {[%clk 0:01:39.1]} 20. Bg2 {[%clk 0:01:37.8]} 20... c6 {[%clk 0:01:35.4]}
21. Rd2 {[%clk 0:01:29.5]} 21... Nc5 {[%clk 0:01:35.8]} 22. Rhd1 {[%clk
0:01:27.9]} 22... Rxd2+ {[%clk 0:01:35.9]} 23. Rxd2 {[%clk 0:01:27.9]} 23... Re8
{[%clk 0:01:36.1]} 24. b4 {[%clk 0:01:22.4]} 24... Ne6 {[%clk 0:01:35.9]} 25.
Qe5 {[%clk 0:00:56.8]} 25... f6 {[%clk 0:01:30.7]} 26. Qe4 {[%clk 0:00:41.9]}
26... f5 {[%clk 0:01:21.5]} 27. Qe5 {[%clk 0:00:41.5]} 27... g5 {[%clk
0:01:21.7]} 28. Qxf5 {[%clk 0:00:32.9]} 28... gxf4 {[%clk 0:00:54.8]} 29. Rd4
{[%clk 0:00:31.6]} 29... Rf8 {[%clk 0:00:50.8]} 30. Qe4 {[%clk 0:00:12.4]} 30...
Nxd4+ {[%clk 0:00:48.8]} 31. Qxd4 {[%clk 0:00:13.3]} 31... fxe3 {[%clk
0:00:44.1]} 32. fxe3 {[%clk 0:00:12.9]} 32... Qf6 {[%clk 0:00:41.6]} 33. Qg4+
{[%clk 0:00:13.5]} 33... Kb8 {[%clk 0:00:41.3]} 34. Qg3+ {[%clk 0:00:13.7]}
34... Ka8 {[%clk 0:00:40.6]} 35. Bf3 {[%clk 0:00:08.2]} 35... Qb2+ {[%clk
0:00:40.3]} 36. Kd3 {[%clk 0:00:08.8]} 36... Qxa3+ {[%clk 0:00:40.4]} 37. Ke4
{[%clk 0:00:09.4]} 37... Re8+ {[%clk 0:00:39.7]} 38. Kf4 {[%clk 0:00:09.5]}
38... Qxe3+ {[%clk 0:00:39.9]} 39. Kf5 {[%clk 0:00:09.4]} 39... Rf8+ {[%clk
0:00:39.8]} 40. Kg4 {[%clk 0:00:09.9]} 40... Rg8+ {[%clk 0:00:39.2]} 0-1

[Event "Late-Titled-Tuesday-Blitz-June-04-2024"]
[Site "Chess.com"]
[Date "2024.06.04"]
[Round "3"]
[White "MuhittinBuker"]
[Black "Jeppesen08"]
[Result "1/2-1/2"]
[WhiteElo "2230"]
[BlackElo "2451"]
[TimeControl "180+1"]
[EndTime "14:27:19 PDT"]
[Termination "Game drawn by repetition"]

1. d4 {[%clk 0:03:00.9]} 1... c5 {[%clk 0:02:58]} 2. d5 {[%clk 0:02:58.1]} 2...
e5 {[%clk 0:02:54.9]} 3. e4 {[%clk 0:02:57]} 3... d6 {[%clk 0:02:54.6]} 4. Nc3
{[%clk 0:02:57.3]} 4... Be7 {[%clk 0:02:53.7]} 5. Nf3 {[%clk 0:02:57.3]} 5...
Bg4 {[%clk 0:02:52.9]} 6. Be2 {[%clk 0:02:57.4]} 6... Bxf3 {[%clk 0:02:52.2]} 7.
Bxf3 {[%clk 0:02:58.3]} 7... Bg5 {[%clk 0:02:52]} 8. O-O {[%clk 0:02:58]} 8...
a6 {[%clk 0:02:43.2]} 9. a4 {[%clk 0:02:56.8]} 9... Nd7 {[%clk 0:02:42.8]} 10.
a5 {[%clk 0:02:54.8]} 10... Bxc1 {[%clk 0:02:33.9]} 11. Qxc1 {[%clk 0:02:52.6]}
11... Ne7 {[%clk 0:02:34.5]} 12. Qd2 {[%clk 0:02:49.3]} 12... O-O {[%clk
0:02:33.8]} 13. Na4 {[%clk 0:02:48.4]} 13... f5 {[%clk 0:02:32.9]} 14. b3 {[%clk
0:02:45]} 14... Ng6 {[%clk 0:02:28.6]} 15. Nb2 {[%clk 0:02:42.5]} 15... Nh4
{[%clk 0:02:17.2]} 16. Qd3 {[%clk 0:02:30.5]} 16... Nxf3+ {[%clk 0:02:05.9]} 17.
Qxf3 {[%clk 0:02:29.7]} 17... fxe4 {[%clk 0:02:06.8]} 18. Qxe4 {[%clk
0:02:29.5]} 18... Rf4 {[%clk 0:02:07]} 19. Qe2 {[%clk 0:02:26.5]} 19... Nf6
{[%clk 0:01:55.4]} 20. Nc4 {[%clk 0:02:21.7]} 20... Nxd5 {[%clk 0:01:42.9]} 21.
Rfd1 {[%clk 0:02:18.7]} 21... Nc3 {[%clk 0:01:36.7]} 22. Qh5 {[%clk 0:02:10.4]}
22... Nxd1 {[%clk 0:01:32.1]} 23. Rxd1 {[%clk 0:02:09.4]} 23... g6 {[%clk
0:01:09.6]} 24. Qh3 {[%clk 0:02:02]} 24... Rd4 {[%clk 0:01:04.3]} 25. Rxd4
{[%clk 0:02:01.4]} 25... cxd4 {[%clk 0:01:05]} 26. Qe6+ {[%clk 0:02:01.5]} 26...
Kg7 {[%clk 0:01:05.7]} 27. Nxd6 {[%clk 0:02:01.5]} 27... Qf6 {[%clk 0:00:53.4]}
28. Ne8+ {[%clk 0:02:00.9]} 28... Rxe8 {[%clk 0:00:48.2]} 29. Qxe8 {[%clk
0:02:01.4]} 29... Qf4 {[%clk 0:00:40.4]} 30. g3 {[%clk 0:02:01.5]} 30... Qe4
{[%clk 0:00:35.8]} 31. Qe7+ {[%clk 0:01:46.2]} 31... Kh6 {[%clk 0:00:35.9]} 32.
h3 {[%clk 0:00:52]} 32... Qxc2 {[%clk 0:00:30.5]} 33. Qxe5 {[%clk 0:00:39.6]}
33... d3 {[%clk 0:00:26]} 34. Qe3+ {[%clk 0:00:36.2]} 34... Kg7 {[%clk 0:00:11]}
35. Qe7+ {[%clk 0:00:36.5]} 35... Kg8 {[%clk 0:00:11.2]} 36. Qe8+ {[%clk
0:00:36.6]} 36... Kg7 {[%clk 0:00:11.8]} 37. Qe7+ {[%clk 0:00:37.1]} 37... Kg8
{[%clk 0:00:12.4]} 38. Qe8+ {[%clk 0:00:37]} 38... Kg7 {[%clk 0:00:13.1]} 39.
Qe7+ {[%clk 0:00:37.2]} 1/2-1/2

[Event "Late-Titled-Tuesday-Blitz-June-04-2024"]
[Site "Chess.com"]
[Date "2024.06.04"]
[Round "3"]
[White "KChor05"]
[Black "MatthewG-p4p"]
[Result "0-1"]
[WhiteElo "2637"]
[BlackElo "2891"]
[TimeControl "180+1"]
[EndTime "14:27:21 PDT"]
[Termination "MatthewG-p4p won by resignation"]

1. e4 {[%clk 0:03:00]} 1... e6 {[%clk 0:02:59.9]} 2. d4 {[%clk 0:02:59.2]} 2...
d5 {[%clk 0:02:58.8]} 3. Nd2 {[%clk 0:02:59.3]} 3... a6 {[%clk 0:02:55.8]} 4.
Ngf3 {[%clk 0:02:56.3]} 4... Nf6 {[%clk 0:02:54.2]} 5. e5 {[%clk 0:02:53.7]}
5... Nfd7 {[%clk 0:02:54.5]} 6. Bd3 {[%clk 0:02:53.6]} 6... c5 {[%clk
0:02:55.1]} 7. c3 {[%clk 0:02:53.6]} 7... Nc6 {[%clk 0:02:55.2]} 8. O-O {[%clk
0:02:53.6]} 8... g5 {[%clk 0:02:55.9]} 9. dxc5 {[%clk 0:02:38.4]} 9... g4 {[%clk
0:02:55.8]} 10. Nd4 {[%clk 0:02:22.9]} 10... Ndxe5 {[%clk 0:02:54.7]} 11. N2b3
{[%clk 0:02:13]} 11... Nxd3 {[%clk 0:02:51.8]} 12. Qxd3 {[%clk 0:02:13.9]} 12...
e5 {[%clk 0:02:52.5]} 13. Nxc6 {[%clk 0:02:12.7]} 13... bxc6 {[%clk 0:02:53.4]}
14. Re1 {[%clk 0:02:12.7]} 14... Bg7 {[%clk 0:02:53.2]} 15. Bf4 {[%clk
0:02:08.8]} 15... f6 {[%clk 0:02:52.5]} 16. Nd4 {[%clk 0:01:20.8]} 16... Qd7
{[%clk 0:02:21.9]} 17. Bg3 {[%clk 0:01:09.6]} 17... O-O {[%clk 0:02:20.3]} 18.
Nc2 {[%clk 0:01:04.9]} 18... a5 {[%clk 0:02:10.6]} 19. Ne3 {[%clk 0:01:01.1]}
19... f5 {[%clk 0:02:09.8]} 20. Bh4 {[%clk 0:00:32]} 20... f4 {[%clk 0:02:04.8]}
21. Nc2 {[%clk 0:00:29.8]} 21... Qf7 {[%clk 0:01:49.7]} 22. g3 {[%clk
0:00:26.7]} 22... Bf5 {[%clk 0:01:45.4]} 23. Qd2 {[%clk 0:00:25.9]} 23... Be4
{[%clk 0:01:28.2]} 24. Rxe4 {[%clk 0:00:17.6]} 24... dxe4 {[%clk 0:01:29.1]} 25.
Re1 {[%clk 0:00:17.8]} 25... Qc4 {[%clk 0:01:11.8]} 26. Na3 {[%clk 0:00:15.3]}
26... Qxc5 {[%clk 0:01:06.5]} 27. Rxe4 {[%clk 0:00:14.1]} 27... Qd5 {[%clk
0:00:57.9]} 28. Qe2 {[%clk 0:00:07.6]} 28... f3 {[%clk 0:00:57.3]} 29. Qe1
{[%clk 0:00:05.5]} 29... Ra7 {[%clk 0:00:43.8]} 30. Nc4 {[%clk 0:00:06.1]} 30...
Rd7 {[%clk 0:00:44.2]} 31. Rxg4 {[%clk 0:00:05]} 31... h5 {[%clk 0:00:30.9]} 32.
Re4 {[%clk 0:00:03.3]} 32... Qxe4 {[%clk 0:00:29.4]} 0-1